bitfinex-derivatives/quotes_ETHF0:USTF0_20250520
["timestamp","ask_amount","ask_price","bid_price","bid_amount"]
[1747708106037,1.81259911,2571.1,2570.8,0.77775]
[1747708106237,2.06245,2571.2,2570.9,1.376]
[1747708106437,1.81259911,2571.1,2570.9,1.376]
[1747708106641,2.06245,2571.2,2570.9,1.376]
[1747708106935,14.8738,2571.3,2570.9,1.376]
[1747708106936,3.2078,2571.3,2570.9,1.376]
[1747708107143,3.2078,2571.6,2571.0,3.2078]
[1747708107336,1.81259911,2571.3,2570.9,4.116]
[1747708107536,0.77766,2571.2,2570.9,4.116]
[1747708107737,3.2078,2571.3,2570.9,4.116]
[1747708107943,3.2078,2571.3,2571.2,0.77765]
[1747708108142,0.77751,2571.7,2571.3,0.7776]
[1747708108342,0.77756,2571.5,2571.4,1.2628]
[1747708108543,1.81259911,2571.6,2571.4,1.2628]
[1747708108739,0.77756,2571.5,2571.4,1.2628]
[1747708108940,1.81259911,2571.5,2571.1,2.74]
[1747708109140,0.77771,2571.0,2570.9,1.2628]
[1747708109344,2.59045911,2570.5,2570.4,0.9203]
[1747708109843,0.77786,2570.5,2570.1,1.2628]
[1747708110043,4.4519,2570.9,2570.3,3.2078]
[1747708110246,3.2078,2570.9,2570.4,1.7276262]
[1747708110747,3.2078,2570.9,2570.7,0.77778]
[1747708110949,3.2078,2570.9,2570.8,2.08177]
[1747708111143,3.98554,2570.9,2570.8,4.044]
[1747708111449,3.2078,2570.9,2570.8,4.82177]
[1747708111747,3.98554,2570.9,2570.8,4.044]
[1747708112348,5.79813911,2570.9,2570.8,4.044]
[1747708112542,5.79813911,2570.9,2570.8,2.74]
[1747708112946,22.46813911,2570.9,2570.8,2.74]
[1747708113148,0.77786,2570.5,2570.4,1.3765]
[1747708113453,0.77786,2570.5,2569.9,3.2078]
[1747708113454,0.77797,2570.2,2569.9,3.2078]
[1747708113743,0.00583192,2570.3,2570.0,1.3765]
[1747708113950,14.8778,2571.4,2570.2,3.2078]
[1747708114140,1.81259911,2570.4,2570.3,1.3765]
[1747708114451,0.77787,2570.5,2570.3,1.3765]
[1747708114650,1.81259911,2570.4,2570.3,1.3765]
[1747708114847,2.59048911,2570.4,2570.3,1.3765]
[1747708115151,3.84550911,2570.4,2570.3,2.74]
[1747708115347,6.27539911,2570.4,2570.3,2.74]
[1747708115555,0.00583192,2570.6,2570.3,2.74]
[1747708116052,0.00583192,2570.6,2570.5,0.77786]
[1747708116652,3.98542,2571.3,2570.9,0.77772]
[1747708116846,3.98542,2571.3,2571.0,1.2758]
[1747708116847,1.81259911,2571.2,2571.0,1.2758]
[1747708117347,3.2078,2571.3,2571.0,4.0158]
[1747708117542,1.81259911,2571.2,2571.0,4.0158]
[1747708118459,3.2078,2571.3,2571.0,4.0158]
[1747708118752,1.81259911,2571.2,2571.0,4.0158]
[1747708119346,2.59025911,2571.2,2571.0,4.0158]
[1747708119544,3.2078,2571.3,2571.0,4.0158]
[1747708120148,3.98542,2571.3,2571.0,4.79349]
[1747708120347,3.2078,2571.3,2571.0,4.0158]
[1747708120548,2.59027911,2571.1,2571.0,4.0158]
[1747708120756,2.59027911,2571.1,2571.0,0.48015616]
[1747708121051,1.81259911,2571.1,2571.0,0.48015616]
[1747708121258,2.59027911,2571.1,2571.0,0.48015616]
[1747708122151,1.81259911,2571.1,2571.0,0.48015616]
[1747708122640,1.81259911,2571.1,2571.0,1.25786616]
[1747708122844,3.2078,2571.3,2571.0,1.25786616]
[1747708123044,0.00583192,2571.4,2571.3,0.77762]
[1747708123257,0.00583192,2571.4,2571.1,3.92247]
[1747708123449,1.81259911,2571.3,2571.1,3.1448]
[1747708123643,1.81259911,2571.3,2571.2,1.74648008]
[1747708124052,0.77786,2570.5,2570.4,0.53154122]
[1747708124252,0.77786,2570.5,2570.4,1.22e-06]
[1747708124253,16.2694181,2570.5,2570.4,1.22e-06]
[1747708124454,21.2694181,2570.5,2570.4,1.22e-06]
[1747708124652,62.0694181,2570.5,2570.4,1.22e-06]
[1747708125156,50.6414181,2570.5,2570.4,2.74000122]
[1747708125353,62.0694181,2570.5,2570.4,2.74000122]
[1747708125542,50.6414181,2570.5,2570.4,2.74000122]
[1747708125749,62.0694181,2570.5,2570.4,2.74000122]
[1747708125950,62.0694181,2570.5,2570.4,1.86403122]
[1747708126151,62.0694181,2570.5,2570.4,1.22e-06]
[1747708126460,1.6336481,2570.4,2570.3,3.91e-06]
[1747708126657,3.8529481,2570.4,2570.3,3.91e-06]
[1747708126852,8.8529481,2570.4,2570.3,3.91e-06]
[1747708127047,0.77795,2570.2,2569.3,0.77823]
[1747708127356,16.2715081,2570.2,2569.5,2.74]
[1747708127551,21.2715081,2570.2,2569.5,2.74]
[1747708128059,21.2715081,2570.2,2570.1,1.92e-06]
[1747708128355,1.6338981,2569.6,2569.5,1.95706]
[1747708128557,4.8416981,2569.6,2569.5,1.95706]
[1747708128758,21.2716981,2569.6,2569.5,1.95706]
[1747708129150,20.4935581,2569.6,2569.3,0.00583192]
[1747708129348,0.7782,2569.4,2569.3,0.00583192]
[1747708129552,1.6339581,2569.4,2569.3,0.00583192]
[1747708129760,14.6378,2569.6,2569.3,0.00583192]
[1747708129956,3.2078,2569.6,2569.3,0.00583192]
[1747708130159,3.98594,2569.6,2569.3,2.74583192]
[1747708130450,5.23834,2569.6,2569.4,1.2949]
[1747708130655,0.77819,2569.5,2569.3,2.74583192]
[1747708130862,1.2524,2569.5,2569.3,2.74583192]
[1747708131055,0.8557581,2569.4,2569.3,2.74583192]
[1747708131558,1.2524,2569.5,2569.3,2.74583192]
[1747708131757,0.8557581,2569.4,2569.3,2.74583192]
[1747708131958,1.6339581,2569.4,2569.3,2.74583192]
[1747708133163,0.7782,2569.4,2569.3,2.74583192]
[1747708133365,12.2112,2569.4,2569.3,2.74583192]
[1747708133562,13.0669581,2569.4,2569.3,2.74583192]
[1747708135364,1.6339581,2569.4,2569.3,2.74583192]
[1747708135555,11.435,2569.4,2569.3,2.74583192]
[1747708135756,12.2132,2569.4,2569.3,2.74583192]
[1747708136051,1.2524,2569.5,2569.3,2.74583192]
[1747708136360,14.6428,2569.6,2569.3,3.52404192]
[1747708136556,0.00583192,2569.8,2569.4,1.3234]
[1747708136763,0.78393192,2569.8,2569.4,3.05838]
[1747708136962,0.00583192,2569.8,2569.5,0.77816]
[1747708137157,0.00583192,2569.8,2569.6,1.3234]
[1747708137357,0.78391192,2569.8,2569.6,1.3234]
[1747708137557,3.2078,2569.7,2569.6,1.3234]
[1747708138365,3.98591,2569.7,2569.6,1.3234]
[1747708139167,3.2078,2569.7,2569.6,1.3234]
[1747708139366,0.00583192,2569.8,2569.6,6.3234]
[1747708139571,3.2078,2571.0,2569.7,4.5319]
[1747708139867,0.77789,2570.5,2570.3,0.08486477]
[1747708140165,0.8557581,2570.6,2570.4,1.3241]
[1747708140360,3.98562,2570.7,2570.4,1.3241]
[1747708140668,0.00583192,2570.8,2570.7,0.7778]
[1747708141166,0.00583192,2570.8,2570.7,8.9856]
[1747708141570,0.00583192,2570.8,2570.7,10.2625]
[1747708142373,0.00583192,2570.8,2570.7,5.2625]
[1747708142564,0.00583192,2570.8,2570.7,4.4847]
[1747708142757,0.86159002,2570.8,2570.6,2.74]
[1747708142964,1.6335581,2570.7,2570.6,2.74]
[1747708143171,0.77783,2570.6,2570.5,2.74583192]
[1747708143370,0.77789,2570.4,2570.3,0.08486477]
[1747708143668,4.8414481,2570.4,2570.3,0.08486477]
[1747708144366,4.8414481,2570.4,2570.3,2.82486477]
[1747708144367,16.2744481,2570.4,2570.3,2.82486477]
[1747708144671,21.2744481,2570.4,2570.3,2.82486477]
[1747708144869,16.2744481,2570.4,2570.3,2.74]
[1747708145173,0.77795,2570.2,2570.1,0.00583192]
[1747708145467,11.90095,2570.2,2570.1,0.00583192]
[1747708146063,16.90095,2570.2,2570.1,1.92e-06]
[1747708146468,0.77795,2570.2,2570.1,1.92e-06]
[1747708147670,11.90095,2570.2,2570.1,1.92e-06]
[1747708148073,1.50876415,2570.4,2570.1,1.92e-06]
[1747708148371,11.90095,2570.2,2570.1,1.36370192]
[1747708148767,16.90095,2570.2,2570.1,3.93e-06]
[1747708148970,0.77795,2570.2,2570.1,3.93e-06]
[1747708149167,52.70095,2570.2,2570.1,3.93e-06]
[1747708149567,41.57795,2570.2,2570.1,3.93e-06]
[1747708149771,52.70095,2570.2,2570.1,3.93e-06]
[1747708149975,11.90095,2570.2,2570.1,3.93e-06]
[1747708151868,16.90095,2570.2,2570.1,3.93e-06]
[1747708152069,0.77798,2570.1,2570.0,1.37896393]
[1747708152274,0.77798,2570.1,2569.3,2.199]
[1747708152275,0.7782,2569.4,2569.3,2.199]
[1747708152679,0.77818,2569.5,2569.3,2.199]
[1747708152882,14.3318,2569.7,2569.3,2.199]
[1747708152883,2.06334,2569.6,2569.3,2.199]
[1747708153073,3.2078,2569.7,2569.3,2.199]
[1747708153273,3.2078,2569.7,2569.3,4.939]
[1747708153878,3.2078,2570.4,2569.5,1.94542]
[1747708154179,1.2852,2570.3,2569.7,3.2078]
[1747708154378,0.77796,2570.2,2569.9,0.77803]
[1747708154580,0.77796,2570.2,2570.0,1.3644]
[1747708154970,14.3318,2570.1,2569.6,0.42208712]
[1747708155181,3.98591,2569.7,2569.6,0.42208712]
[1747708155681,0.77814,2569.6,2569.3,0.9293]
[1747708155878,2.13964,2569.6,2569.1,0.79911373]
[1747708156769,7.13964,2569.6,2569.5,1.88474]
[1747708156974,0.77826,2569.2,2569.1,0.02022373]
[1747708157179,0.77835,2568.9,2568.8,3.62e-06]
[1747708157382,0.77853,2568.3,2568.2,0.40146432]
[1747708158077,2.14003,2568.3,2568.2,0.40146432]
[1747708160180,0.77856,2568.2,2568.1,2.30777432]
[1747708160377,2.12376,2568.2,2568.1,2.30777432]
[1747708160678,7.12376,2568.2,2568.1,0.32509432]
[1747708160986,7.12376,2568.2,2568.1,4.32e-06]
[1747708161182,6.3452,2568.2,2568.0,2.74]
[1747708161376,0.77871,2567.7,2567.6,3.62e-06]
[1747708161577,0.7788,2567.4,2567.3,2.71965575]
[1747708161777,3.9866,2567.4,2567.3,2.71965575]
[1747708161985,8.9866,2567.4,2567.3,2.71965575]
[1747708162185,44.7866,2567.4,2567.3,3.00420338]
[1747708162478,1.3758,2567.6,2567.3,3.00420338]
[1747708162683,11.13,2567.5,2567.3,3.00420338]
[1747708162878,3.2078,2567.7,2567.4,1.2523]
[1747708163085,14.3378,2568.0,2567.5,0.77877]
[1747708163286,14.3378,2568.0,2567.6,1.2523]
[1747708163579,3.2078,2568.0,2567.6,1.2523]
[1747708163779,4.5836,2568.0,2567.6,1.2523]
[1747708163985,0.77871,2567.8,2567.6,1.2523]
[1747708164185,1.38163192,2567.9,2567.6,1.2523]
[1747708164481,0.77874,2567.6,2567.5,2.74]
[1747708164678,11.90874,2567.6,2567.5,2.74]
[1747708164881,13.25004,2567.6,2567.5,2.74]
[1747708165086,2.12004,2567.6,2567.5,2.74]
[1747708165685,13.25004,2567.6,2567.5,2.74]
[1747708166288,1.3413,2567.6,2567.5,2.74]
[1747708166491,2.12004,2567.6,2567.5,2.74]
[1747708167085,1.3413,2567.6,2567.5,2.74]
[1747708167287,2.12004,2567.6,2567.5,2.74]
[1747708167487,1.3413,2567.6,2567.5,2.74]
[1747708167988,2.12004,2567.6,2567.5,2.74]
[1747708169381,1.3413,2567.6,2567.5,2.74]
[1747708169585,12.4743,2567.6,2567.5,2.74]
[1747708169780,13.25304,2567.6,2567.5,2.74]
[1747708169984,3.2078,2567.4,2565.6,3.2078]
[1747708170186,3.2078,2566.7,2565.8,1.321]
[1747708170385,0.0058434,2566.5,2565.9,3.2078]
[1747708170583,0.0058434,2566.5,2566.1,3.2078]
[1747708170784,3.2078,2567.2,2565.8,6.321]
[1747708170785,3.2078,2567.2,2566.4,3.2078]
[1747708170981,3.2078,2567.2,2566.7,3.2078]
[1747708171181,11.133,2567.4,2567.0,3.2078]
[1747708171491,0.77879,2567.5,2566.7,3.2078]
[1747708171790,0.0058434,2567.4,2566.8,0.0058434]
[1747708171993,3.98646,2567.9,2567.0,3.98671]
[1747708172194,0.77869,2567.8,2567.1,1.091]
[1747708172390,3.2078,2567.9,2567.2,3.2078]
[1747708172689,11.134,2568.0,2567.2,3.2078]
[1747708172884,3.2078,2568.3,2567.6,3.2078]
[1747708173086,0.77866,2567.9,2567.2,3.2078]
[1747708173291,0.77868,2567.8,2567.5,2.74]
[1747708173586,50.4008434,2568.2,2567.5,5.9478]
[1747708173790,0.77868,2567.8,2567.5,2.74]
[1747708174093,0.77868,2567.8,2567.6,1.3361]
[1747708174287,11.134,2568.1,2567.6,1.3361]
[1747708174886,39.2668434,2568.2,2567.6,1.3361]
[1747708175087,0.77869,2567.8,2567.6,1.3361]
[1747708175288,0.77869,2567.8,2567.7,1.0498]
[1747708175496,0.77871,2567.7,2567.6,1.3361]
[1747708176195,3.98651,2567.7,2567.6,1.3361]
[1747708177590,0.77871,2567.7,2567.6,1.3361]
[1747708181395,3.98651,2567.7,2567.6,0.47587]
[1747708181596,0.77874,2567.6,2567.5,2.74]
[1747708181993,2.02574,2567.6,2567.5,2.74]
[1747708182702,2.02574,2567.6,2567.5,1.35021]
[1747708182992,2.02574,2567.6,2566.8,3.4e-06]
[1747708182993,0.77895,2566.9,2566.8,3.4e-06]
[1747708183202,12.04795,2566.9,2566.8,0.7876034]
[1747708183699,13.33235,2566.9,2566.8,0.7876034]
[1747708184192,18.33235,2566.9,2566.8,3.4e-06]
[1747708184504,0.77901,2566.7,2566.6,1.57e-06]
[1747708184695,15.25681,2566.7,2566.6,1.57e-06]
[1747708185301,0.77901,2566.7,2566.6,1.57e-06]
[1747708185795,3.98681,2566.7,2566.6,1.57e-06]
[1747708186594,5.25391,2566.7,2566.6,1.57e-06]
[1747708187902,3.98681,2566.7,2566.6,1.30470157]
[1747708188800,3.98681,2566.7,2566.6,1.57e-06]
[1747708189000,3.98681,2566.7,2566.6,1.34340157]
[1747708189504,3.98681,2566.7,2566.6,1.42826634]
[1747708189898,0.779,2566.8,2566.6,6.42826634]
[1747708190097,0.77898,2566.8,2566.7,1.3434]
[1747708191298,2.11018,2566.8,2566.7,1.3434]
[1747708191599,1.3312,2566.8,2566.6,2.82486634]
[1747708191804,0.77901,2566.7,2566.6,2.82486634]
[1747708192304,0.77901,2566.7,2566.6,0.08486634]
[1747708192602,3.2078,2566.8,2566.6,5.08486634]
[1747708192794,3.2078,2566.8,2566.7,1.3077]
[1747708192992,3.98678,2566.8,2566.7,1.3077]
[1747708193396,5.28138,2566.8,2566.7,1.3077]
[1747708194398,3.98678,2566.8,2566.7,1.3077]
[1747708195105,3.2078,2566.8,2566.7,1.3077]
[1747708195295,3.2078,2566.8,2566.7,2.08671]
[1747708195497,0.0058434,2566.9,2566.8,0.77898]
[1747708195801,3.98667,2567.2,2567.0,0.77891]
[1747708195995,3.98667,2567.2,2567.1,1.2811]
[1747708196699,1.2923434,2567.4,2567.1,1.2811]
[1747708197004,0.77886,2567.2,2567.1,1.2811]
[1747708197201,0.77884,2567.3,2567.1,2.05997]
[1747708197505,0.77889,2567.1,2567.0,2.74]
[1747708198507,3.98669,2567.1,2567.0,2.74]
[1747708199510,5.26109,2567.1,2567.0,2.74]
[1747708200411,1.2744,2567.1,2567.0,2.74]
[1747708200804,1.2744,2567.1,2567.0,3.51892]
[1747708201109,2.05329,2567.1,2567.0,2.74]
[1747708201313,4.4822,2567.1,2567.0,2.74]
[1747708201511,14.7894634,2567.4,2567.1,0.77889]
[1747708201708,16.0904634,2567.4,2567.2,1.3252]
[1747708201905,4.5146434,2567.4,2567.2,1.3252]
[1747708202110,5.2934534,2567.4,2567.2,1.3252]
[1747708202305,5.2934534,2567.4,2567.2,2.10406]
[1747708202609,5.2934534,2567.4,2567.2,2.10405]
[1747708202807,4.5146434,2567.4,2567.2,2.10405]
[1747708203119,5.2934434,2567.4,2567.3,1.3252]
[1747708204114,5.2934434,2567.4,2567.3,4.0652]
[1747708204115,3.9924434,2567.4,2567.3,4.0652]
[1747708205117,0.0058434,2567.4,2567.3,9.84403]
[1747708205817,0.0058434,2567.4,2567.3,4.0652]
[1747708206016,0.7846434,2567.4,2567.3,2.74]
[1747708206204,0.77889,2567.1,2567.0,0.08486477]
[1747708206403,3.2078,2567.1,2567.0,5.08486477]
[1747708206609,0.0058434,2567.4,2567.0,5.08486477]
[1747708206916,0.64068694,2567.8,2567.7,0.77871]
[1747708207311,0.64068694,2567.8,2567.3,2.5203]
[1747708207515,0.64068694,2567.8,2567.4,1.1362]
[1747708207714,0.64068694,2567.8,2567.7,0.77871]
[1747708208209,0.64068694,2567.8,2567.7,5.77871]
[1747708208615,0.64068694,2567.8,2567.7,7.15351]
[1747708208807,0.96026337,2567.9,2567.8,0.77868]
[1747708209008,0.96026337,2567.9,2567.7,2.15349]
[1747708209207,0.96026337,2567.9,2567.8,0.77868]
[1747708209413,0.96026337,2567.9,2567.8,1.3748]
[1747708209619,0.96026337,2567.9,2567.8,2.15348]
[1747708210111,0.96026337,2567.9,2567.8,4.89348]
[1747708210318,0.96026337,2567.9,2567.8,8.10128]
[1747708210513,0.96026337,2567.9,2567.8,4.89348]
[1747708211413,0.96026337,2567.9,2567.8,9.89348]
[1747708211716,1.26971516,2568.2,2568.1,0.77859]
[1747708212213,1.26971516,2568.2,2568.1,5.77859]
[1747708212414,1.26971516,2568.2,2568.1,9.26619]
[1747708213010,0.0058434,2568.4,2568.3,0.77853]
[1747708213218,0.0058434,2568.4,2568.3,3.98633]
[1747708213418,0.0058434,2568.4,2568.3,8.98633]
[1747708214118,3.4e-06,2568.4,2568.3,19.77933]
[1747708214310,3.4e-06,2568.4,2568.3,22.51933]
[1747708215217,3.4e-06,2568.4,2568.3,6.72633]
[1747708215519,3.4e-06,2568.4,2568.3,11.72633]
[1747708216023,1.29569531,2569.1,2569.0,0.77832]
[1747708216208,1.29569531,2569.1,2569.0,3.98612]
[1747708216408,1.29569531,2569.1,2569.0,8.98612]
[1747708216621,0.79569531,2569.1,2569.0,8.98612]
[1747708216817,5.33425239,2569.7,2569.3,0.77822]
[1747708217126,0.0058434,2569.6,2569.3,6.72602]
[1747708217320,0.0058434,2569.6,2569.3,11.72602]
[1747708217527,0.0058434,2569.6,2569.3,8.10602]
[1747708218315,0.0058434,2569.6,2569.5,0.77816]
[1747708218725,5.33425239,2569.7,2569.6,0.77813]
[1747708218925,5.33425239,2569.7,2569.6,5.36593]
[1747708219127,5.33425239,2569.7,2569.6,10.36593]
[1747708219426,5.33425239,2569.7,2569.6,11.49613]
[1747708219617,1.90896754,2570.0,2569.6,10.86135154]
[1747708219818,1.90896754,2570.0,2569.9,3.2078]
[1747708220019,1.90896754,2570.0,2569.9,3.98584]
[1747708220221,2.22200154,2570.2,2569.9,10.9478]
[1747708220428,12.10093749,2570.4,2570.0,1.3745]
[1747708220722,12.10093749,2570.4,2570.3,0.77792]
[1747708221122,13.38203749,2570.4,2570.3,0.77792]
[1747708221321,13.38203749,2570.4,2570.3,3.51792]
[1747708221823,12.10093749,2570.4,2570.3,3.51792]
[1747708222023,12.10093749,2570.4,2570.3,6.72572]
[1747708222225,16.08662749,2570.4,2570.3,2.74]
[1747708222428,17.37752749,2570.4,2570.3,2.74]
[1747708222626,14.16972749,2570.4,2570.3,2.74]
[1747708223413,18.39183749,2570.4,2569.5,3.2078]
[1747708223620,0.77798,2570.1,2569.7,0.77809]
[1747708223818,2.06891,2570.0,2569.7,0.77809]
[1747708224019,0.778,2570.1,2569.8,3.2078]
[1747708224221,1.2909,2570.1,2569.8,3.51806]
[1747708224521,12.10093749,2570.4,2570.3,0.77792]
[1747708225136,11.23326749,2570.4,2570.3,0.77792]
[1747708225423,2.49928268,2570.5,2570.4,0.77789]
[1747708225620,2.49928268,2570.5,2570.4,5.29319]
[1747708226228,2.49928268,2570.5,2570.4,8.03319]
[1747708226721,2.49928268,2570.5,2570.4,13.03319]
[1747708226922,1.57661268,2570.5,2570.4,23.59119]
[1747708227826,2.81169301,2570.8,2570.4,22.8133]
[1747708228025,3.24045234,2571.0,2570.9,0.77774]
[1747708228329,3.24045234,2571.0,2570.5,1.94459]
[1747708228330,6.44825234,2571.0,2570.4,7.2553]
[1747708228525,1.3106,2570.9,2570.4,7.2553]
[1747708228827,1.3106,2570.9,2570.8,0.77777]
[1747708229220,1.3106,2570.9,2570.8,3.51777]
[1747708229421,3.24045234,2571.0,2570.9,0.77774]
[1747708229725,3.24045234,2571.0,2570.9,2.03294]
[1747708229917,3.24045234,2571.0,2570.9,0.77774]
[1747708230116,3.24045234,2571.0,2570.9,3.51774]
[1747708231723,10.557,2571.7,2570.9,3.51774]
[1747708231724,3.2078,2572.6,2570.9,55.716]
[1747708231924,1.2912,2573.7,2572.5,3.2078]
[1747708232129,1.2912,2573.7,2573.6,0.77692]
[1747708232526,20.06700978,2574.3,2573.4,3.2078]
[1747708232724,20.06700978,2574.3,2574.0,3.2078]
[1747708232922,3.2078,2574.1,2573.4,3.2078]
[1747708233121,10.555,2574.0,2573.4,5.9478]
[1747708233332,3.2078,2574.1,2573.4,5.9478]
[1747708233525,10.555,2574.0,2573.6,0.77692]
[1747708233839,33.82980978,2574.3,2573.4,5.9478]
[1747708234026,20.06700978,2574.3,2574.2,0.77674]
[1747708234330,17.79280978,2574.3,2574.2,0.77674]
[1747708234727,3.52252448,2574.6,2574.5,0.77665]
[1747708234923,1.77e-06,2574.6,2574.5,8.98445]
[1747708235124,10.551,2575.9,2574.6,1.9415]
[1747708235332,10.551,2575.9,2575.3,3.2078]
[1747708235527,11.32724,2575.9,2575.3,3.2078]
[1747708235826,1.3336,2575.8,2575.3,3.2078]
[1747708236022,3.2078,2575.6,2574.9,3.2078]
[1747708236225,1.3336,2575.5,2574.9,5.9478]
[1747708236419,10.551,2575.4,2575.0,0.7765]
[1747708236624,1.3336,2575.5,2574.9,5.9478]
[1747708236625,1.3336,2575.3,2574.9,5.9478]
[1747708236828,1.3336,2575.3,2575.2,3.98424]
[1747708237033,2.145,2576.0,2575.2,3.2078]
[1747708237225,2.145,2576.0,2575.9,0.77623]
[1747708237427,40.8,2576.7,2575.9,3.2078]
[1747708237428,3.2078,2576.7,2575.9,3.2078]
[1747708237731,13.7588,2576.7,2575.7,0.00583068]
[1747708237926,13.7588,2576.7,2575.9,3.2078]
[1747708238127,13.7588,2576.7,2575.9,5.9478]
[1747708238128,14.53481,2576.7,2575.9,5.9478]
[1747708238329,13.7588,2576.7,2576.1,0.77614]
[1747708238530,13.7588,2576.7,2575.9,5.9478]
[1747708238729,3.98389,2576.4,2575.9,2.74]
[1747708238938,10.546,2576.8,2575.9,2.74]
[1747708238939,3.2078,2576.3,2575.9,2.74]
[1747708239123,10.546,2576.2,2575.9,2.74]
[1747708239733,3.2078,2576.4,2575.9,2.74]
[1747708239935,3.2078,2576.4,2576.1,0.77616]
[1747708240128,1.291,2576.3,2576.0,2.74]
[1747708240335,0.77614,2576.2,2576.0,2.74]
[1747708240530,12.61317,2576.1,2576.0,2.74]
[1747708240837,15.0448,2576.1,2574.8,3.2078]
[1747708241132,3.2078,2575.4,2574.8,3.2078]
[1747708241340,3.2078,2575.1,2574.4,3.2078]
[1747708241537,14.1191,2575.0,2574.4,3.2078]
[1747708241939,14.12488828,2575.0,2574.4,3.21363068]
[1747708242135,3.2078,2574.8,2574.4,2.74583068]
[1747708242331,0.77674,2574.2,2573.9,0.39867629]
[1747708242531,10.543,2574.1,2573.8,0.53682733]
[1747708242738,10.543,2574.1,2573.5,3.2078]
[1747708243038,41.1147,2574.5,2573.9,0.77683]
[1747708243039,3.2078,2574.0,2573.9,0.77683]
[1747708243338,3.2078,2574.1,2573.7,0.00583068]
[1747708243533,0.77686,2573.8,2573.7,0.00583068]
[1747708243729,14.52766,2573.8,2573.7,0.00583068]
[1747708244034,10.543,2573.8,2573.7,0.00583068]
[1747708244234,16.31988,2573.8,2573.6,2.74]
[1747708244433,14.52768,2573.8,2573.6,2.74]
[1747708244738,19.52768,2573.8,2573.6,2.74]
[1747708245135,18.7508,2573.8,2573.0,3.2078]
[1747708245335,0.00583068,2573.7,2573.6,0.77693]
[1747708245832,0.00583068,2573.7,2573.6,3.2078]
[1747708246029,0.00583068,2573.7,2573.2,1.257]
[1747708246230,0.00583068,2573.7,2573.5,0.77694]
[1747708246735,1.29553068,2573.7,2573.5,0.77694]
[1747708247137,1.29553068,2573.7,2573.5,3.51693]
[1747708247440,1.29553068,2573.7,2573.5,2.74]
[1747708247635,1.29553068,2573.7,2573.5,3.51694]
[1747708248433,0.77693,2573.6,2573.5,2.74]
[1747708248632,3.98473,2573.6,2573.5,0.9793]
[1747708248829,10.33473,2573.6,2573.5,0.9793]
[1747708249333,0.77705,2573.2,2573.1,0.00583068]
[1747708249537,10.543,2573.2,2573.1,0.00583068]
[1747708250039,11.8399,2573.2,2573.1,0.00583068]
[1747708250341,12.61695,2573.2,2573.1,0.00583068]
[1747708250526,11.8399,2573.2,2573.1,0.00583068]
[1747708251333,0.00583068,2573.7,2573.1,0.00583068]
[1747708251537,0.00583068,2573.7,2573.1,6.8e-07]
[1747708251538,3.98485,2573.2,2573.1,6.8e-07]
[1747708251839,0.77705,2573.2,2573.1,6.8e-07]
[1747708252742,8.98485,2573.2,2573.1,6.8e-07]
[1747708254035,3.98485,2573.2,2573.1,6.8e-07]
[1747708254231,19.52985,2573.2,2573.1,6.8e-07]
[1747708254744,11.32205,2573.2,2573.1,6.8e-07]
[1747708255643,14.52985,2573.2,2573.1,6.8e-07]
[1747708255843,1.2969,2573.6,2573.1,6.8e-07]
[1747708255844,3.2078,2573.5,2573.1,6.8e-07]
[1747708256045,3.98478,2573.5,2573.1,6.8e-07]
[1747708256238,1.3482,2573.4,2573.1,6.8e-07]
[1747708256441,10.69583068,2573.7,2573.3,3.2078]
[1747708256646,11.47273068,2573.7,2573.4,1.3279]
[1747708256842,13.98628068,2573.7,2573.1,6.8e-07]
[1747708257049,0.77705,2573.2,2573.1,6.8e-07]
[1747708257250,11.46705,2573.2,2573.1,6.8e-07]
[1747708257450,16.46705,2573.2,2573.1,6.8e-07]
[1747708257652,17.81525,2573.2,2573.1,6.8e-07]
[1747708259346,3.2078,2572.9,2570.9,4.3677]
[1747708259543,3.98536,2571.5,2570.9,3.2078]
[1747708259744,14.67636,2571.5,2571.4,0.21776349]
[1747708259946,19.67636,2571.5,2571.4,0.21776349]
[1747708260247,0.77774,2570.9,2570.8,1.31213237]
[1747708260451,11.46874,2570.9,2570.8,1.31213237]
[1747708260745,10.691,2570.9,2570.8,1.31213237]
[1747708260949,11.46874,2570.9,2570.8,1.31213237]
[1747708261248,11.46874,2570.9,2569.9,4.28812806]
[1747708261249,15.691,2570.9,2569.9,4.28812806]
[1747708261458,0.77801,2570.0,2569.9,2.98902806]
[1747708261643,0.77807,2569.9,2569.3,1.2991]
[1747708261845,3.2078,2569.7,2569.3,1.2991]
[1747708262146,3.2078,2569.7,2569.3,4.0391]
[1747708262351,3.986,2569.4,2569.3,2.74]
[1747708262547,14.68,2569.4,2569.3,2.74]
[1747708262742,19.68,2569.4,2569.3,2.74]
[1747708263051,3.986,2569.4,2569.3,2.74]
[1747708263252,13.9018,2569.4,2569.2,0.00583068]
[1747708263757,10.69983068,2569.8,2569.3,0.7782]
[1747708263942,10.69983068,2569.8,2569.5,3.2078]
[1747708264144,10.69983068,2569.8,2569.6,2.12171]
[1747708264339,83.1948,2570.4,2570.1,0.77798]
[1747708264546,10.694,2570.5,2570.2,4.5514]
[1747708264841,10.697,2570.7,2570.3,1.3436]
[1747708265048,0.77785,2570.6,2570.3,1.3436]
[1747708265244,0.77789,2570.4,2570.3,2.74]
[1747708265441,3.98569,2570.4,2570.3,2.74]
[1747708265641,14.68269,2570.4,2570.3,2.74]
[1747708265945,0.77789,2570.4,2570.3,2.74]
[1747708266450,14.68269,2570.4,2570.3,2.74]
[1747708266752,19.68269,2570.4,2570.3,2.74]
[1747708267153,0.77795,2570.2,2570.1,0.00583068]
[1747708267348,10.697,2570.2,2570.1,0.00583068]
[1747708267654,1.36613068,2570.6,2570.1,0.00583068]
[1747708267840,10.697,2570.5,2570.1,0.00583068]
[1747708268047,3.2078,2570.4,2570.1,0.00583068]
[1747708268350,0.77795,2570.2,2570.1,0.00583068]
[1747708268550,0.77793,2570.3,2570.1,0.00583068]